bitfinex-derivatives/quotes_ETHF0:USTF0_20210702
["timestamp","ask_amount","ask_price","bid_price","bid_amount"]
[1625217166733,2.20527,2049.2,2049.0,2.20527]
[1625217166834,2.20527,2049.2,2049.0,6.55227]
[1625217167082,1.98931299,2049.5,2049.1,57.0161]
[1625217167183,1.98931299,2049.5,2049.2,1.0]
[1625217167334,0.0001,2049.5,2049.2,1.0]
[1625217168834,0.0001,2049.5,2049.4,2.20527]
[1625217168933,0.0001,2049.5,2049.4,3.20527]
[1625217175707,3.6772,2049.5,2049.1,1.0]
[1625217175906,3.6772,2049.5,2048.7,3.00670763]
[1625217176317,3.6772,2049.5,2048.7,1.0]
[1625217176764,2.20527,2048.8,2048.7,3.20527]
[1625217176865,4.52827,2048.8,2048.7,3.20527]
[1625217177367,4.52827,2048.8,2048.7,2.20527]
[1625217177768,4.52827,2048.8,2048.4,2.00641815]
[1625217177869,4.52827,2048.8,2048.0,2.00666314]
[1625217178573,4.52827,2048.8,2048.1,1.0]
[1625217178823,4.52827,2048.8,2048.4,2.20527]
[1625217178924,4.52827,2048.8,2048.4,3.20527]
[1625217179780,4.52827,2048.8,2048.4,2.20527]
[1625217180429,4.52827,2048.8,2047.9,1.0]
[1625217180833,4.41054,2048.0,2047.9,3.20527]
[1625217180932,7.54634,2048.0,2047.9,3.20527]
[1625217182790,3.1358,2048.0,2047.9,3.20527]
[1625217182886,2.20527,2048.9,2047.9,3.20527]
[1625217182989,2.20527,2048.9,2047.9,6.75657]
[1625217183137,14.7735,2049.3,2047.9,6.75657]
[1625217183285,14.7735,2049.3,2049.1,56.7207]
[1625217183588,4.7591,2049.5,2049.1,56.7207]
[1625217183736,0.0001,2049.5,2049.1,56.7207]
[1625217183939,0.0001,2049.5,2048.5,1.0]
[1625217184487,0.0001,2049.5,2048.8,54.448]
[1625217184638,0.0001,2049.5,2048.9,1.0]
[1625217184892,2.20527,2049.2,2049.1,2.20527]
[1625217185441,2.20527,2049.2,2049.1,3.20527]
[1625217186289,2.20527,2049.2,2049.1,1.0]
[1625217186390,0.0001,2049.5,2049.1,1.0]
[1625217186846,4.41054,2049.2,2049.1,3.20527]
[1625217187449,4.41054,2049.2,2049.1,2.20527]
[1625217187747,4.41054,2049.2,2049.1,3.20527]
[1625217188601,0.0001,2049.5,2049.1,3.20527]
[1625217188700,0.0001,2049.5,2049.1,6.56597]
[1625217188902,0.0001,2049.5,2049.4,2.20527]
[1625217189051,0.0001,2049.5,2049.4,3.20527]
[1625217191974,0.0001,2049.5,2049.4,2.20527]
[1625217192071,0.0001,2049.5,2049.4,3.20527]
[1625217192573,0.0001,2049.5,2049.4,2.20527]
[1625217193426,0.0001,2049.5,2049.4,3.20527]
[1625217197942,0.0001,2049.5,2049.4,2.20527]
[1625217198945,2.20537,2049.5,2049.4,2.20527]
[1625217203855,2.20537,2049.5,2049.4,3.20527]
[1625217205407,2.20537,2049.5,2049.4,2.20527]
[1625217206260,2.20537,2049.5,2049.4,3.20527]
[1625217206564,2.20537,2049.5,2049.4,2.20527]
[1625217209246,2.20537,2049.5,2049.4,3.20527]
[1625217211898,2.20537,2049.5,2049.4,2.20527]
[1625217212009,5.47017,2049.5,2049.4,2.20527]
[1625217214206,5.47017,2049.5,2049.1,2.20527]
[1625217214304,5.47017,2049.5,2048.5,1.0]
[1625217214958,5.47017,2049.5,2047.8,1.99997258]
[1625217215056,5.47017,2049.5,2047.7,2.85710368]
[1625217215057,2.20527,2048.8,2048.7,2.20527]
[1625217215156,3.6446,2048.8,2048.7,3.20527]
[1625217216257,3.6446,2048.8,2048.7,59.90227]
[1625217216411,3.6446,2048.8,2048.7,3.20527]
[1625217217971,3.6446,2048.8,2048.7,2.20527]
[1625217218070,3.6446,2048.8,2048.7,3.20527]
[1625217218937,3.6446,2048.8,2048.7,47.36957]
[1625217219836,3.6446,2048.8,2048.7,3.20527]
[1625217220297,4.41054,2049.0,2048.7,3.20527]
[1625217220747,4.41054,2049.0,2048.7,2.20527]
[1625217226510,7.63294,2049.0,2048.7,2.20527]
[1625217228163,5.0,2048.9,2047.5,2.00144486]
[1625217228362,7.63294,2049.0,2047.5,2.00144486]
[1625217228464,5.0,2048.9,2047.5,2.00144486]
[1625217228565,7.63294,2049.0,2047.5,2.00144486]
[1625217228714,44.1232,2048.4,2047.6,1.0]
[1625217228814,47.8559,2048.4,2047.3,2.0015824]
[1625217229065,47.8559,2048.4,2047.1,2.00193776]
[1625217229167,2.20527,2047.5,2047.4,2.20527]
[1625217229316,5.46267,2047.5,2047.4,2.20527]
[1625217229719,5.46267,2047.5,2047.4,3.20527]
[1625217230024,5.46267,2047.5,2047.4,2.20527]
[1625217230278,5.46267,2047.5,2047.2,2.20527]
[1625217230675,5.46267,2047.5,2047.3,1.0]
[1625217231177,2.20527,2047.4,2047.3,1.0]
[1625217235860,2.20527,2047.4,2047.3,54.19]
[1625217236310,2.20527,2047.4,2047.3,1.0]
[1625217237966,2.20527,2047.4,2047.3,42.1169]
[1625217238067,7.05722301,2050.2,2047.3,42.1169]
[1625217238168,0.9638,2049.0,2047.3,42.1169]
[1625217238270,0.9638,2049.0,2047.3,45.0471]
[1625217239230,2.20527,2047.4,2047.3,45.0471]
[1625217239333,2.20527,2047.4,2047.3,42.1169]
[1625217239879,2.20527,2047.4,2047.3,1.0]
[1625217244652,2.20527,2047.4,2047.3,44.3493]
[1625217245351,2.20527,2047.4,2047.3,1.0]
[1625217246559,2.20527,2047.4,2047.2,2.20527]
[1625217246709,2.20527,2047.4,2047.3,1.0]
[1625217248513,2.20527,2047.4,2047.2,2.20527]
[1625217248965,2.20527,2047.4,2047.3,1.0]
[1625217251386,2.20527,2047.4,2047.3,54.3479]
[1625217252139,2.20527,2047.4,2047.3,1.0]
[1625217252688,2.20527,2047.4,2047.3,58.8709]
[1625217253189,2.20527,2047.4,2047.3,1.0]
[1625217254144,2.20527,2047.4,2047.0,2.20527]
[1625217254292,2.20527,2047.4,2046.8,2.00377397]
[1625217254543,2.20527,2047.4,2046.7,1.0]
[1625217254693,61.3359,2047.3,2046.7,1.0]
[1625217254794,64.2259,2047.3,2046.7,1.0]
[1625217254898,2.89,2047.3,2046.7,1.0]
[1625217255295,4.41054,2046.8,2046.7,1.0]
[1625217255395,8.01054,2046.8,2046.7,1.0]
[1625217255949,8.01054,2046.8,2046.7,59.0532]
[1625217256350,3.6,2046.8,2046.7,59.0532]
[1625217256448,3.0438,2047.8,2046.7,59.0532]
[1625217256551,5.0,2048.4,2046.7,59.0532]
[1625217256650,14.6549,2048.9,2046.7,59.0532]
[1625217256752,15.7549,2048.9,2046.7,59.0532]
[1625217257301,2.20527,2047.3,2047.2,2.20527]
[1625217257415,1.20527,2047.3,2047.2,2.20527]
[1625217257560,1.20527,2047.3,2047.2,51.01867]
[1625217258116,1.20527,2047.3,2047.2,2.20527]
[1625217259666,1.0,2048.1,2047.2,2.20527]
[1625217259765,2.1,2049.0,2047.2,5.47807]
[1625217259866,1.0,2048.8,2047.2,5.47807]
[1625217260422,1.0,2048.8,2047.4,58.0936]
[1625217260721,1.0,2048.8,2047.2,5.47807]
[1625217261325,1.0,2048.8,2047.2,48.62177]
[1625217261425,2.20527,2047.7,2047.6,2.20527]
[1625217261528,3.16867,2047.7,2047.6,2.20527]
[1625217261632,2.20527,2047.7,2047.6,2.20527]
[1625217262635,2.20527,2047.7,2047.6,2.19627]
[1625217263395,4.41054,2047.7,2047.6,2.19627]
[1625217263991,1.0,2048.3,2047.6,2.19627]
[1625217264098,1.0,2048.8,2047.6,5.51327]
[1625217264202,14.6549,2048.9,2047.6,5.51327]
[1625217264592,14.6549,2048.9,2048.6,56.2466]
[1625217264691,14.6549,2048.9,2048.6,58.6135]
[1625217264892,4.759,2049.4,2048.6,58.6135]
[1625217265393,2.20527,2048.7,2048.6,60.81877]
[1625217265708,0.0001,2049.5,2048.6,60.81877]
[1625217267462,2.20527,2049.3,2049.2,2.20527]
[1625217267563,2.20527,2049.3,2049.2,48.44307]
[1625217268064,2.20527,2049.3,2049.2,5.69017]
[1625217268515,0.0001,2049.5,2049.2,3.4849]
[1625217269466,4.41054,2049.3,2049.2,2.20527]
[1625217270967,8.18884,2049.3,2049.2,2.20527]
[1625217275790,8.18884,2049.3,2048.0,1.0]
[1625217275940,5.0,2049.2,2047.8,2.00212859]
[1625217276041,13.18884,2049.3,2047.8,2.00212859]
[1625217276295,13.18884,2049.3,2047.4,6.76182537]
[1625217276396,46.9506,2048.1,2047.4,6.76182537]
[1625217276495,50.6616,2048.1,2047.4,6.76182537]
[1625217276696,50.6616,2048.1,2047.3,2.00280303]
[1625217276896,3.711,2048.1,2047.3,2.00280303]
[1625217277597,2.20527,2047.6,2047.5,2.20527]
[1625217279502,4.41054,2047.6,2047.5,2.20527]
[1625217280405,7.88504,2047.6,2047.5,2.20527]
[1625217285746,7.88504,2047.6,2047.5,3.63686365]
[1625217287549,3.711,2048.1,2047.5,3.63686365]
[1625217287651,1.0,2049.0,2047.5,6.59136365]
[1625217287749,15.9357,2049.2,2047.5,7.16436891]
[1625217288156,15.9357,2049.2,2048.1,44.2649]
[1625217288600,15.9357,2049.2,2047.7,1.43181549]
[1625217288702,18.5315,2049.2,2047.7,1.43181549]
[1625217289202,18.5315,2049.2,2047.9,60.4937]
[1625217289452,18.5315,2049.2,2047.7,1.43181549]
[1625217289555,18.5315,2049.2,2048.8,2.20527]
[1625217289702,2.20527,2048.9,2048.8,2.20527]
[1625217291653,4.41054,2048.9,2048.8,2.20527]
[1625217293156,8.18284,2048.9,2048.8,2.20527]
[1625217294516,3.7723,2048.9,2048.8,2.20527]
[1625217294612,15.9357,2049.2,2048.8,2.20527]
[1625217294613,15.9357,2049.2,2048.8,49.00057]
[1625217294712,15.9357,2049.2,2048.8,52.42097]
[1625217295623,15.9357,2049.2,2049.1,2.20527]
[1625217295719,0.0001,2049.5,2049.1,2.20527]
[1625217296922,0.0001,2049.5,2049.4,44.6983]
[1625217297023,0.0001,2049.5,2049.1,2.20527]
[1625217297671,0.0001,2049.5,2049.4,2.20527]
[1625217301052,0.0001,2049.5,2049.1,2.20527]
[1625217301203,3.7362,2049.5,2048.3,1.43296648]
[1625217301505,3.7362,2049.5,2048.2,1.43299026]
[1625217301703,2.20527,2048.9,2048.8,2.20527]
[1625217301802,4.94287,2048.9,2048.8,2.20527]
[1625217302504,4.94287,2048.9,2048.6,2.20527]
[1625217303155,4.94287,2048.9,2048.1,1.43301422]
[1625217303456,4.94287,2048.9,2048.0,1.43338954]
[1625217303658,2.20527,2048.4,2048.3,2.20527]
[1625217303758,4.69637,2048.4,2048.3,2.20527]
[1625217304807,4.69637,2048.4,2048.3,52.52947]
[1625217304957,2.20527,2048.4,2048.3,52.52947]
[1625217305057,2.20527,2048.4,2048.3,2.20527]
[1625217305558,2.20527,2048.4,2048.3,52.52947]
[1625217305709,4.41054,2048.4,2048.3,52.52947]
[1625217306608,4.41054,2048.4,2048.3,2.20527]
[1625217308315,8.08304,2048.4,2048.3,2.20527]
[1625217309212,8.08304,2048.4,2048.0,1.43359423]
[1625217309463,8.08304,2048.4,2047.9,2.00703192]
[1625217309464,8.08304,2048.4,2047.8,1.43381702]
[1625217309714,4.41054,2047.9,2047.8,1.43381702]
[1625217309814,7.36354,2047.9,2047.6,1.43392895]
[1625217310014,7.36354,2047.9,2047.5,1.43406197]
[1625217311427,7.36354,2047.9,2047.4,3.63948446]
[1625217311726,2.20527,2047.5,2047.4,3.63948446]
[1625217312282,2.20527,2047.5,2047.4,2.20527]
[1625217313749,43.20907,2047.5,2047.4,2.20527]
[1625217314761,2.20527,2047.5,2047.4,2.20527]
[1625217315262,2.20527,2047.5,2047.1,3.63970013]
[1625217315764,2.20527,2047.2,2047.1,3.63970013]
[1625217318171,2.20527,2047.5,2047.1,3.63970013]
[1625217318472,2.20527,2047.5,2047.2,1.43441204]
[1625217319375,2.20527,2047.5,2047.1,3.63959767]
[1625217319474,4.83357,2047.5,2047.1,3.63959767]
[1625217319879,2.20527,2047.2,2047.1,3.63959767]
[1625217320086,4.83357,2047.5,2047.1,3.63959767]
[1625217320598,4.83357,2047.5,2047.2,61.301]
[1625217320747,2.20527,2047.5,2047.2,62.73521781]
[1625217321047,2.20527,2047.5,2047.2,1.43421781]
[1625217321799,2.20527,2047.4,2047.2,1.43421781]
[1625217322456,2.20527,2047.4,2047.3,1.43416032]
[1625217323006,1.0,2048.3,2047.3,1.43416032]
[1625217323156,15.0631,2048.9,2047.3,1.43416032]
[1625217323464,15.0631,2048.9,2048.1,51.083]
[1625217323556,15.0631,2048.9,2048.1,53.5929]
[1625217323860,2.20527,2048.7,2048.6,2.20527]
[1625217324660,4.759,2049.4,2048.6,2.20527]
[1625217324760,4.759,2049.4,2048.6,4.99977]
[1625217325724,0.0001,2049.5,2048.6,4.99977]
[1625217325824,2.20537,2049.5,2049.4,2.20527]
[1625217325926,2.20537,2049.5,2049.4,5.20167]
[1625217326428,0.0001,2049.5,2049.4,5.20167]
[1625217326888,0.0001,2049.5,2049.4,55.53547]
[1625217327040,0.0001,2049.5,2049.4,5.20167]
[1625217327759,44.195,2049.5,2049.4,5.20167]
[1625217327861,44.195,2049.5,2049.2,2.20527]
[1625217327862,46.40027,2049.5,2049.2,2.20527]
[1625217327978,48.89447,2049.5,2049.2,2.20527]
[1625217328612,4.69957,2049.5,2049.2,2.20527]
[1625217329718,52.74917,2049.5,2049.2,2.20527]
[1625217329816,2.20527,2049.3,2049.2,2.20527]
[1625217330918,2.20527,2049.3,2048.9,2.20527]
[1625217331868,2.20527,2049.0,2048.9,2.20527]
[1625217332069,2.20527,2049.0,2048.7,2.20527]
[1625217333347,2.20527,2049.0,2048.7,7e-05]
[1625217333485,5.17967,2049.0,2048.1,1.43347617]
[1625217333590,5.17967,2049.0,2048.0,1.43348801]
[1625217333692,5.0,2048.9,2048.0,1.43348801]
[1625217333890,46.1698,2048.0,2047.9,1.97537122]
[1625217334002,54.9469,2048.0,2047.9,1.97537122]
[1625217334201,54.9469,2048.0,2047.9,1.40827122]
[1625217334302,54.9469,2048.0,2047.4,4.58716163]
[1625217334402,54.9469,2048.0,2047.2,7.74109371]
[1625217334500,54.9469,2048.0,2047.2,2.00714167]
[1625217334604,54.9469,2048.0,2047.1,2.39234524]
[1625217334749,54.9469,2048.0,2046.2,2.00797726]
[1625217334750,56.0469,2048.0,2046.2,2.00797726]
[1625217334847,1.0,2047.9,2046.2,2.00797726]
[1625217335010,1.1,2047.8,2046.2,2.00797726]
[1625217335104,1.0,2047.7,2046.2,2.00797726]
[1625217335199,5.0,2047.6,2046.2,2.00797726]
[1625217335300,6.0,2047.6,2046.2,2.00797726]
[1625217335503,14.0,2047.6,2046.2,2.00797726]
[1625217335603,1.1,2047.5,2046.2,1.62147726]
[1625217335749,5.6719,2047.5,2046.1,2.86853895]
[1625217335851,5.0,2047.4,2045.9,2.00821062]
[1625217335949,4.41054,2046.2,2045.9,2.00821062]
[1625217336206,4.41054,2046.2,2046.1,57.3995]
[1625217336354,4.41054,2046.2,2045.9,2.00821062]
[1625217336556,4.41054,2046.2,2045.3,2.00696049]
[1625217336854,50.1611,2045.9,2045.3,2.00696049]
[1625217336958,53.2026,2045.9,2045.3,2.00696049]
[1625217337158,53.2026,2045.9,2045.2,5.07235641]
[1625217337159,53.2026,2045.9,2045.2,2.20527]
[1625217337607,5.0,2045.8,2045.2,2.20527]
[1625217337707,5.0,2045.8,2044.8,2.00714595]
[1625217337908,4.41054,2044.9,2044.8,2.00714595]
[1625217338011,7.57704,2044.9,2044.3,2.20527]
[1625217339912,4.41054,2044.4,2044.3,2.20527]
[1625217340061,7.50784,2044.4,2044.3,2.20527]
[1625217340967,4e-05,2044.4,2044.3,2.20527]
[1625217341064,1.0,2045.2,2044.3,2.20527]
[1625217341164,15.7749,2046.4,2044.3,2.20527]
[1625217341269,1.0,2046.3,2044.3,5.37987]
[1625217341481,1.0,2046.3,2044.9,52.9967]
[1625217341580,14.6749,2046.4,2044.9,56.535]
[1625217341733,1.1,2046.6,2044.9,56.535]
[1625217341984,2.20527,2045.9,2045.8,2.20527]
[1625217342081,5.0,2047.5,2046.0,52.9811]
[1625217343437,1.0,2047.6,2046.0,52.9811]
[1625217343540,5.0,2047.6,2045.8,5.96347]
[1625217343640,6.0,2047.6,2045.8,5.96347]
[1625217343943,2.20527,2046.5,2046.4,2.20527]
[1625217344342,2.20527,2046.5,2045.8,2.20527]
[1625217344492,5.31507,2046.5,2045.8,2.20527]
[1625217346008,4.41054,2045.9,2045.8,2.20527]
[1625217347516,1.0,2046.8,2045.8,2.20527]
[1625217347615,1.1,2047.2,2045.8,5.24417]
[1625217347716,6.0,2048.0,2045.8,5.24417]
[1625217347816,1.1,2047.7,2045.8,5.24417]
[1625217347914,1.0,2047.6,2045.8,5.24417]
[1625217348015,2.20527,2046.5,2046.4,2.20527]
[1625217348468,1.1,2047.7,2046.4,2.20527]
[1625217348567,87.8619,2049.1,2046.4,5.41897]
[1625217348719,16.1497,2048.1,2046.4,5.41897]
[1625217348821,21.1497,2048.1,2046.4,5.41897]
[1625217348920,22.2497,2048.1,2046.4,5.41897]
[1625217349722,70.8168,2048.1,2046.4,2.20527]
[1625217349972,4.41054,2046.5,2045.6,2.20527]
[1625217350073,4.41054,2046.5,2044.6,8.46705319]
[1625217350074,6.0,2046.4,2044.6,8.46705319]
[1625217350374,6.0,2046.4,2044.6,4.759]
[1625217350673,6.0,2046.4,2043.6,15.2234]
[1625217350674,44.9036,2045.3,2043.6,15.2234]
[1625217350773,1.0,2045.2,2043.6,15.2234]
[1625217351125,1.0,2045.2,2043.4,3.70822999]
[1625217351378,1.0,2045.2,2043.3,3.70841003]
[1625217351782,1.0,2045.2,2043.1,4.759]
[1625217351879,1.0,2045.2,2043.0,3.70838368]
[1625217351976,2.20527,2044.3,2044.2,2.20527]
[1625217352077,6.83317,2044.3,2044.2,2.20527]
[1625217352427,6.83317,2044.3,2042.7,3.70494764]
[1625217353027,6.83317,2044.3,2042.8,17.624727]
[1625217354030,6.83317,2044.3,2044.0,2.20527]
[1625217355142,5.83317,2044.3,2044.0,2.20527]
[1625217355996,2.20527,2044.1,2043.4,2.20527]
[1625217356298,1.0,2044.0,2043.4,2.20527]
[1625217356647,2.20527,2044.1,2043.4,2.20527]
[1625217357300,1.0,2044.0,2043.4,2.20527]
[1625217358002,4.41054,2043.5,2043.4,2.20527]
[1625217363277,3.0808,2044.8,2043.4,2.20527]
[1625217363425,3.0611,2045.6,2043.4,4.74207]
[1625217363576,15.5366,2047.0,2043.4,4.74207]
[1625217363676,67.2412,2046.7,2043.4,4.74207]
[1625217363779,1.0,2046.2,2043.4,4.74207]
[1625217363978,6.0,2046.2,2043.4,4.74207]
[1625217364078,2.20527,2044.0,2043.9,2.20527]
[1625217364830,2.20527,2044.0,2043.4,4.74207]
[1625217365587,5.57917,2044.0,2043.4,2.20527]
[1625217365685,6.57917,2044.0,2043.4,2.20527]
[1625217366139,4.41054,2043.5,2043.4,2.20527]
[1625217366285,6.70664,2043.5,2043.4,2.20527]
[1625217366485,7.70664,2043.5,2043.4,2.20527]
[1625217366736,6.70664,2043.5,2043.4,2.20527]
[1625217367288,7.70664,2043.5,2043.4,2.20527]
[1625217367537,6.70664,2043.5,2043.4,2.20527]
[1625217367986,7.70664,2043.5,2043.4,2.20527]
[1625217368285,6.70664,2043.5,2043.4,2.20527]
[1625217368386,4.41054,2043.5,2043.4,2.20527]
[1625217368737,3.56979187,2047.7,2043.4,2.20527]
[1625217368838,16.0133,2046.6,2043.4,5.13727]
[1625217368937,1.1,2045.9,2043.4,5.13727]
[1625217369039,1.0,2045.8,2043.4,5.13727]
[1625217369540,48.5073,2045.4,2043.4,5.13727]
[1625217369640,6.0,2045.3,2043.4,5.13727]
[1625217370041,6.9784,2045.3,2043.4,5.13727]
[1625217370143,4.41054,2043.5,2043.1,2.20527]
[1625217370591,5.41054,2043.5,2043.1,2.20527]
[1625217371358,8.50504,2043.5,2043.1,2.20527]
[1625217371562,7.50504,2043.5,2043.1,2.20527]
[1625217372117,2.20527,2043.2,2043.1,2.20527]
[1625217372920,1.04914278,2043.2,2043.1,2.20527]
[1625217373172,2.20527,2043.5,2043.1,2.20527]
[1625217374125,2.20527,2043.5,2043.4,2.20527]
[1625217375135,2.20527,2043.5,2043.1,2.20527]
[1625217376187,2.20527,2043.5,2043.4,2.20527]
[1625217376288,2.20527,2043.5,2043.4,4.88447]
[1625217376938,3.20527,2043.5,2043.4,4.88447]
[1625217377443,3.20527,2043.5,2043.4,2.6792]
[1625217377539,3.20527,2043.5,2043.1,2.20527]
[1625217377789,4.20527,2043.5,2043.1,2.20527]
[1625217378141,2.20527,2043.2,2043.1,2.20527]
[1625217378489,3.20527,2043.2,2043.1,2.20527]
[1625217379539,6.73067,2043.2,2043.1,2.20527]
[1625217382995,5.73067,2043.2,2043.1,2.20527]
[1625217383098,2.20527,2043.2,2043.1,2.20527]
[1625217383248,3.20527,2043.2,2043.1,2.20527]
[1625217386288,2.20527,2043.2,2043.1,2.20527]
[1625217387745,3.20527,2043.2,2043.1,2.20527]
[1625217387848,2.20527,2043.2,2043.1,2.20527]
[1625217391009,3.20527,2043.2,2043.1,2.20527]
[1625217391662,2.20527,2043.2,2043.1,2.20527]
[1625217391966,3.20527,2043.2,2043.1,2.20527]
[1625217392073,3.20527,2043.2,2042.8,2.20527]
[1625217392174,3.20527,2043.2,2041.0,21.8607]
[1625217392275,2.20527,2042.9,2042.4,2.20527]
[1625217392375,1.0,2042.8,2042.4,2.20527]
[1625217394234,2.20527,2042.5,2042.4,2.20527]
[1625217394332,3.20527,2042.5,2042.4,2.20527]
[1625217395033,2.20527,2042.5,2042.4,2.20527]
[1625217396187,3.20527,2042.5,2041.0,49.4912]
[1625217396291,3.20527,2042.5,2041.9,2.20527]
[1625217397240,2.20527,2042.5,2041.9,2.20527]
[1625217397843,2.20527,2042.5,2041.0,4.759]
[1625217397995,4.86107,2042.5,2041.0,4.759]
[1625217398294,2.20527,2042.5,2042.4,4.41054]
[1625217398393,2.20527,2042.5,2042.4,7.91184]
[1625217400447,3.20527,2042.5,2042.4,7.91184]
[1625217400600,2.20527,2042.5,2042.4,7.91184]
[1625217402411,2.20527,2042.5,2042.4,3.5013]
[1625217403562,3.20527,2042.9,2042.4,3.5013]
[1625217403713,2.20527,2042.9,2041.9,2.3444]
[1625217404215,2.20527,2042.9,2042.4,1.15]
[1625217404315,2.20527,2042.9,2042.8,4.41054]
[1625217404618,7e-05,2042.9,2042.8,4.41054]
[1625217404714,2.20527,2043.3,2042.8,4.41054]
[1625217404965,1.0,2043.5,2042.8,4.41054]
[1625217406321,1.0,2043.5,2043.4,4.41054]
[1625217406422,2.0,2043.5,2043.4,4.41054]
[1625217407077,1.0,2043.5,2043.4,4.41054]
[1625217407224,2.0,2043.5,2043.4,4.41054]
[1625217409479,2.0,2043.5,2042.4,1.15]
[1625217409581,4.8017,2043.5,2042.4,1.15]
[1625217410184,4.8017,2043.5,2042.0,4.759]
[1625217410382,2.20527,2042.8,2042.7,2.20527]
[1625217412385,4.41054,2042.8,2042.7,2.20527]
[1625217413039,2.20527,2042.8,2042.7,2.20527]
[1625217415411,1.0,2043.5,2042.7,2.20527]
[1625217415928,1.0,2043.5,2042.7,5.70397]
[1625217416378,4.20527,2043.5,2043.4,2.20527]
[1625217417582,4.20527,2043.5,2042.7,3.4987]
[1625217417933,3.20527,2043.5,2042.7,3.4987]
[1625217418387,3.20527,2043.5,2043.1,2.20527]
[1625217418642,1.0,2043.5,2043.1,2.20527]
[1625217420357,1.0,2043.5,2043.4,2.20527]
[1625217428772,2.0,2043.5,2043.4,2.20527]
[1625217429529,2.0,2043.5,2042.1,4.759]
[1625217429631,5.6576,2043.5,2042.1,4.759]
[1625217429723,5.6576,2043.5,2042.2,0.15935685]
[1625217429926,5.6576,2043.5,2042.1,0.15938227]
[1625217430126,5.6576,2043.5,2041.8,0.15939203]
[1625217430427,2.20527,2042.9,2042.8,2.20527]
[1625217430527,6.17707,2042.9,2042.8,2.20527]
[1625217430830,5.17707,2042.9,2042.8,2.20527]
[1625217431587,5.17707,2042.9,2042.6,2.20527]
[1625217431989,1.0,2042.8,2042.6,2.20527]
[1625217432339,2.20527,2042.9,2042.6,2.20527]
[1625217432439,2.20527,2042.9,2042.7,2.20527]
[1625217432988,1.0,2043.4,2042.7,2.20527]
[1625217434464,3.20527,2043.5,2043.3,2.20527]
[1625217434553,3.20527,2043.5,2043.3,5.62867]
[1625217435618,4.20527,2043.5,2042.3,3.72463082]
[1625217435718,8.06197,2043.5,2042.2,3.72497369]
[1625217436016,5.0,2043.4,2042.2,3.72497369]
[1625217436167,1.0,2043.3,2042.2,3.72497369]
[1625217436568,4.41054,2042.3,2042.2,3.72497369]
[1625217436677,8.22564,2042.3,2042.2,3.72497369]
[1625217436768,8.22564,2042.3,2042.2,2.25497369]
[1625217436916,13.22564,2042.3,2041.7,3.72542191]
[1625217437016,74.56544,2042.3,2041.7,3.72542191]
[1625217437672,1.1,2042.2,2041.7,2.191e-05]
[1625217437780,1.0,2042.1,2041.7,2.191e-05]
[1625217437979,1.0,2042.1,2040.3,3.7309853]
[1625217438528,2.20527,2040.7,2040.5,2.20527]
[1625217438627,1.0,2040.6,2040.5,2.20527]
[1625217438783,1.0,2040.9,2040.5,2.20527]
[1625217438882,1.1,2042.2,2040.5,2.20527]
[1625217438980,1.1,2042.7,2040.5,2.20527]
[1625217439077,1.1,2042.7,2040.5,5.77007]
[1625217439280,14.6417,2042.9,2041.2,47.4137]
[1625217439427,14.6417,2042.9,2041.2,50.008]
[1625217439879,1.0,2042.8,2041.2,50.008]
[1625217440079,1.0,2042.8,2041.2,2.5943]
[1625217440232,6.0,2042.8,2041.2,2.5943]
[1625217440479,2.20527,2042.3,2042.2,2.20527]
[1625217440580,3.20527,2042.3,2042.2,2.20527]
[1625217443136,2.20527,2042.3,2042.2,2.20527]
[1625217443236,3.20527,2042.6,2042.2,2.20527]
[1625217443338,14.6417,2042.9,2042.2,5.85937]
[1625217443537,1.0,2043.5,2042.2,5.85937]
[1625217444240,1.0,2043.4,2042.2,5.85937]
[1625217444489,3.20527,2043.4,2043.3,2.20527]
[1625217444588,3.20527,2043.4,2043.3,5.26967]
[1625217448565,4.17427,2043.4,2043.3,2.20527]
[1625217448717,3.20527,2043.4,2041.3,15.1073]
[1625217448866,6.94877,2043.4,2041.3,15.1073]
[1625217449166,5.0,2043.3,2041.3,15.1073]
[1625217449270,1.0,2043.2,2041.2,9.3495691]
[1625217449416,1.0,2043.2,2041.2,4.759]
[1625217449619,1.0,2043.2,2040.7,4.59179174]
[1625217449819,1.0,2043.2,2040.2,4.59306528]
[1625217449919,1.0,2043.2,2040.3,15.4031]
[1625217450270,1.0,2043.2,2040.3,18.8345]
[1625217450520,2.20527,2041.3,2041.2,2.20527]
[1625217450619,3.20527,2041.3,2041.2,2.20527]
[1625217451673,3.20527,2041.3,2041.0,2.20527]
[1625217451923,5.63297,2041.3,2041.0,2.20527]
[1625217452576,2.20527,2041.1,2041.0,2.20527]
[1625217452725,3.20527,2041.1,2041.0,2.20527]
[1625217455081,3.20527,2041.1,2040.7,2.20527]
[1625217455381,3.20527,2041.1,2040.0,0.05]
[1625217455480,8.20527,2041.1,2040.0,0.05]
[1625217456633,4.41054,2040.1,2040.0,0.05]
[1625217456733,8.10354,2040.1,2040.0,0.05]
[1625217458786,1.0,2040.1,2040.0,0.05]
[1625217458886,16.6172,2042.1,2040.0,0.05]
[1625217458986,1.0,2042.0,2040.0,3.3708]
[1625217459187,6.0,2042.0,2040.0,3.3708]
[1625217460039,55.789,2041.6,2040.0,3.3708]
[1625217460139,6.0,2041.5,2040.0,3.3708]